fUSD/lending_fUSD_20240103
["ID","MTS","AMOUNT","RATE_DAILY","PERIOD"]
[309970697,1704243041643,-4184.67,0.00030988,2]
[309970698,1704243041653,-723.91,0.0003106,2]
[309970699,1704243041663,-3054.12,0.00031337,2]
[309970700,1704243041672,-1000.0,0.00031355,2]
[309970701,1704243041682,-218.36,0.00031465,2]
[309970702,1704243041691,-3106.83,0.00031496,2]
[309970703,1704243041700,-262.65,0.00031631,2]
[309970704,1704243041710,-551.4564055,0.00031637,2]
[309970705,1704243041719,-250.0,0.00031638,2]
[309970706,1704243041728,-169.31,0.00031641,2]
[309970707,1704243041739,-724.89,0.00031675,2]
[309970708,1704243041748,-250.0,0.00031698,2]
[309970709,1704243041757,-150.0,0.00031716,2]
[309970710,1704243041766,-155.0,0.00031739,2]
[309970711,1704243041775,-157.63932534,0.00031843,2]
[309970712,1704243041784,-175.53,0.00031918,2]
[309970713,1704243041793,-184.65614565,0.0003195,4]
[309970714,1704243041802,-350.52,0.00031969,2]
[309970715,1704243041811,-157.0,0.00032,2]
[309970716,1704243041820,-159.2,0.00032113,2]
[309970717,1704243041829,-500.0,0.00032161,2]
[309970718,1704243041838,-572.7389,0.00032162,2]
[309970719,1704243041848,-268.26206316,0.00032162,2]
[309970721,1704243041857,-727.2,0.00032167,2]
[309970722,1704243041866,-37332.54520199,0.00032262,7]
[309970723,1704243041875,-11578.60929759,0.00032262,7]
[309970724,1704243041884,-976.84818875,0.00032262,7]
[309970725,1704243041893,-16070.81156542,0.00032262,7]
[309970726,1704243041902,-2140.82235229,0.00032262,7]
[309970727,1704243042113,-793.57873986,0.00032262,7]
[309970728,1704243042129,-1805.41975687,0.00032262,7]
[309970729,1704243042140,-33665.76563881,0.00032262,7]
[309970734,1704243043160,-10098.11248685,0.00032262,7]
[309970735,1704243043172,-1496.30102532,0.00032262,7]
[309970736,1704243043181,-2296.51,0.00032383,2]
[309970737,1704243043191,-342.0,0.000324,2]
[309970738,1704243043200,-173.81,0.00032432,2]
[309970739,1704243043209,-169.31,0.00032619,2]
[309970740,1704243043218,-175.53,0.0003275,2]
[309970741,1704243043228,-719.61,0.00032876,2]
[309970742,1704243043240,-500.0,0.00032876,2]
[309970743,1704243043249,-500.0,0.00032876,2]
[309970744,1704243043259,-359.16,0.00032876,2]
[309970746,1704243043455,-500.0,0.00032876,2]
[309970747,1704243043465,-155.18,0.00032876,2]
[309970748,1704243043475,-500.0,0.00032876,2]
[309970749,1704243043486,-520.8,0.00032876,2]
[309970750,1704243043496,-500.0,0.00032876,2]
[309970751,1704243043505,-500.0,0.00032876,2]
[309970752,1704243043515,-500.0,0.00032876,2]
[309970753,1704243043524,-500.0,0.00032876,2]
[309970754,1704243043533,-500.0,0.00032876,2]
[309970755,1704243043543,-274.77,0.00032876,2]
[309970756,1704243043552,-500.0,0.00032876,2]
[309970757,1704243043561,-572.91,0.00032876,2]
[309970758,1704243043571,-572.91,0.00032876,2]
[309970759,1704243043581,-500.0,0.00032876,2]
[309970760,1704243043590,-500.0,0.00032876,2]
[309970761,1704243043600,-585.91,0.00032876,2]
[309970762,1704243043610,-500.0,0.00032876,2]
[309970763,1704243043625,-500.0,0.00032876,2]
[309970764,1704243043638,-558.35,0.00032876,2]
[309970765,1704243043647,-307.43,0.00032877,15]
[309970766,1704243043656,-1718.54449905,0.00032877,7]
[309970767,1704243043669,-781.45550095,0.00032877,7]
[309970768,1704243043678,-319.24,0.000329,2]
[309970769,1704243043687,-1656.43874975,0.00033,4]
[309970770,1704243043697,-157.63932534,0.00033029,2]
[309970771,1704243043706,-154.74,0.00033195,2]
[309970772,1704243043716,-572.91,0.0003332,2]
[309970773,1704243043726,-171.05946774,0.00033478,2]
[309970774,1704243043739,-189.91053226,0.00033478,2]
[309970775,1704243043749,-268.26206315,0.0003354,2]
[309970776,1704243043758,-175.53,0.00033581,2]
[309970777,1704243043767,-154.245598,0.00033582,2]
[309970778,1704243043776,-169.31,0.00033598,2]
[309970779,1704243043785,-9604.33331486,0.00033723,2]
[309970780,1704243043794,-1000.0,0.00034,4]
[309970781,1704243043803,-154.245598,0.00034002,2]
[309970782,1704243043813,-157.63932534,0.00034214,2]
[309970783,1704243043822,-350.52,0.00034233,2]
[309970784,1704243043831,-538.45152826,0.00034337,4]
[309970785,1704243043840,-154.245598,0.00034421,2]
[309970786,1704243043850,-213.56984508,0.00034433,4]
[309970787,1704243043859,-150.0,0.000345,2]
[309970788,1704243043868,-151.83132911,0.000345,2]
[309970789,1704243043878,-169.31,0.00034576,2]
[309970790,1704243043887,-153.84,0.00034608,2]
[309970791,1704243043896,-180.0,0.00034658,2]
[309970792,1704243043905,-222.2222,0.00034698,2]
[309970793,1704243043915,-674.20783864,0.00034787,4]
[309970794,1704243043925,-222.2222,0.00034798,2]
[309970795,1704243043935,-154.245598,0.00034841,2]
[309970796,1704243043944,-222.2222,0.00034898,2]
[309970797,1704243043953,-487.74738292,0.000349,4]
[309970798,1704243043962,-268.26206315,0.00034918,2]
[309970799,1704243043971,-1000.0,0.00034958,7]
[309970800,1704243043981,-222.2222,0.00034998,2]
[309970801,1704243043993,-2000.0,0.00035,4]
[309970802,1704243044002,-5000.0,0.00035006,3]
[309970803,1704243044011,-12456.3693631,0.00035007,8]
[309970804,1704243044021,-500.0,0.00035016,2]
[309970805,1704243044031,-541.95,0.00035016,2]
[309970806,1704243044040,-500.0,0.00035016,2]
[309970807,1704243044050,-500.0,0.00035016,2]
[309970809,1704243044059,-500.0,0.00035016,2]
[309970811,1704243044068,-500.0,0.00035016,2]
[309970813,1704243044078,-500.0,0.00035016,2]
[309970815,1704243044087,-500.0,0.00035016,2]
[309970817,1704243044096,-256.80999999,0.00035016,2]
[309970819,1704243044105,-500.0,0.00035016,2]
[309970821,1704243044114,-1477.32,0.00035016,2]
[309970823,1704243044123,-500.0,0.00035016,2]
[309970825,1704243044132,-500.0,0.00035016,2]
[309970827,1704243044141,-500.0,0.00035016,2]
[309970829,1704243044151,-500.0,0.00035016,2]
[309970831,1704243044159,-500.0,0.00035016,2]
[309970833,1704243044168,-500.0,0.00035016,2]
[309970835,1704243044177,-500.0,0.00035016,2]
[309970837,1704243044186,-500.0,0.00035016,2]
[309970839,1704243044196,-500.0,0.00035016,2]
[309970841,1704243044205,-500.0,0.00035016,2]
[309970843,1704243044214,-500.0,0.00035016,2]
[309970845,1704243044223,-500.0,0.00035016,2]
[309970847,1704243044232,-500.0,0.00035016,2]
[309970849,1704243044242,-2469.84,0.00035016,2]
[309970850,1704243044251,-500.0,0.00035016,2]
[309970852,1704243044260,-500.0,0.00035016,2]
[309970854,1704243044270,-500.0,0.00035016,2]
[309970856,1704243044279,-394.15899409,0.00035016,2]
[309970858,1704243044288,-700.75,0.00035016,2]
[309970860,1704243044298,-553.32,0.00035016,2]
[309970862,1704243044307,-500.0,0.00035016,2]
[309970864,1704243044316,-500.0,0.00035016,2]
[309970866,1704243044325,-500.0,0.00035016,2]
[309970868,1704243044334,-500.0,0.00035016,2]
[309970870,1704243044344,-500.0,0.00035016,2]
[309970872,1704243044353,-500.0,0.00035016,2]
[309970874,1704243044362,-500.0,0.00035016,2]
[309970876,1704243044372,-500.0,0.00035016,2]
[309970878,1704243044381,-291.28280834,0.00035016,2]
[309970880,1704243044389,-500.0,0.00035016,2]
[309970882,1704243044399,-500.0,0.00035016,2]
[309970884,1704243044408,-500.0,0.00035016,2]
[309970886,1704243044417,-590.34,0.00035016,2]
[309970888,1704243044426,-500.0,0.00035016,2]
[309970890,1704243044436,-529.83,0.00035016,2]
[309970892,1704243044445,-500.0,0.00035016,2]
[309970894,1704243044455,-744.27,0.00035016,2]
[309970896,1704243044464,-500.0,0.00035016,2]
[309970898,1704243044474,-500.0,0.00035016,2]
[309970900,1704243044484,-638.4,0.00035016,2]
[309970902,1704243044494,-609.20512873,0.00035016,2]
[309970904,1704243044503,-500.0,0.00035016,2]
[309970906,1704243044513,-500.0,0.00035016,2]
[309970908,1704243044522,-28763.71529191,0.00035017,2]
[309970910,1704243044535,-8666.5644082,0.00035017,2]
[309970913,1704243044547,-510.5000003,0.00035017,2]
[309970915,1704243044563,-1665.29767369,0.00035017,2]
[309970918,1704243044579,-55172.28884969,0.00035017,2]
[309970920,1704243044590,-5221.63377621,0.00035017,2]
[309970922,1704243044600,-208.0,0.00035018,16]
[309970924,1704243044609,-8304.24624206,0.00035024,8]
[309970926,1704243044619,-28613.92498173,0.00035025,8]
[309970928,1704243044633,-1885.71569286,0.00035025,8]
[309970930,1704243044644,-677.234,0.00035025,8]
[309970933,1704243044661,-34723.33737363,0.00035025,8]
[309971083,1704243046194,-500.0,0.00035016,2]
[309971085,1704243046203,-392.26620371,0.00035025,8]
[309971091,1704243046254,-4369.67438252,0.00035025,8]
[309971093,1704243046265,-1350.8526661,0.00035025,8]
[309971099,1704243046317,-1576.61283045,0.00035025,8]
[309971112,1704243046431,-530.30636941,0.00035025,8]
[309971119,1704243046489,-1415.76,0.00035016,2]
[309971121,1704243046499,-22524.28994851,0.00035025,8]
[309971276,1704243070377,8042.0,0.00023,2]
[309971278,1704243212650,-161.80506026,0.000229,2]
[309971279,1704243212673,-282.97818772,0.00022998,2]
[309971280,1704243212697,-202.18460976,0.00022998,2]
[309971281,1704243248483,500.0,0.0002,2]
[309971283,1704243270931,987.47879317,0.0002,2]
[309971284,1704243286929,338.47256513,0.0002,2]
[309971285,1704243347715,403.53386833,0.00022998,2]
[309971286,1704243396254,-150.0,0.00022999,2]
[309971287,1704243422749,150.0,0.00022999,2]
[309971288,1704243602565,150.0,0.00022999,2]
[309971289,1704243618984,1679.9605,0.000229,2]
[309971291,1704244142578,150.0,0.00022999,2]
[309971292,1704244146849,1198.8394838,0.00022999,2]
[309971293,1704244153913,220.21652882,0.00022999,2]
[309971348,1704244231401,-2088.8298875,0.00023,2]
[309971353,1704244231414,-388.57521595,0.00023,2]
[309971358,1704244231458,-331.62881422,0.00023,2]
[309971363,1704244231515,-559.52944067,0.00023,2]
[309971366,1704244231529,-3165.4,0.00023,2]
[309971368,1704244231540,-413.64685348,0.00023,2]
[309971372,1704244231572,-2061.61543568,0.00023,2]
[309971379,1704244231631,-255.14430855,0.00023,2]
[309971381,1704244231644,-1183.86267572,0.00023,2]
[309971382,1704244231658,-588.40000008,0.00023,2]
[309971383,1704244231670,-315.2812933,0.00023,2]
[309971384,1704244231696,-5939.4372226,0.00023,2]
[309971385,1704244231750,-492.12919723,0.00023,2]
[309971387,1704244237529,-1036.00466843,0.00023,2]
[309971388,1704244237579,-638.54354498,0.00023,2]
[309971389,1704244237591,-784.20550947,0.00023,2]
[309971390,1704244237637,-1763.46970248,0.00023,2]
[309971391,1704244237692,-289.4002629,0.00023,2]
[309971392,1704244237749,-47060.73090122,0.00023,2]
[309971393,1704244237762,-12858.76281124,0.00023,2]
[309971394,1704244237771,-264.7446,0.00023,2]
[309971395,1704244237781,-46241.34645817,0.00023,2]
[309971396,1704244237794,-137970.85178739,0.00023,2]
[309971397,1704244237856,-42880.33955352,0.00023,2]
[309971411,1704244239933,-3334.71053668,0.00023,2]
[309971412,1704244239945,-465.91588184,0.00023,2]
[309971413,1704244240097,-681.78061838,0.00023,2]
[309971414,1704244240108,-452.25615153,0.00023,2]
[309971415,1704244240121,-359.45574608,0.00023,2]
[309971416,1704244240132,-251.94110539,0.00023,2]
[309971417,1704244240144,-1069.30761069,0.00023,2]
[309971418,1704244240837,-1642.9,0.00023,2]
[309971425,1704244242385,-357.31471586,0.00023,2]
[309971426,1704244242397,-1269.93739665,0.00023,2]
[309971427,1704244242408,-4816.9794817,0.00023,2]
[309971428,1704244242441,-666.41,0.00023,2]
[309971429,1704244242454,-12976.63527523,0.00023,2]
[309971430,1704244242498,-591.92803933,0.00023,2]
[309971431,1704244242511,-338.20311739,0.00023,2]
[309971432,1704244242525,-776.61821534,0.00023,2]
[309971433,1704244242538,-633.13267263,0.00023,2]
[309971434,1704244242606,-2990.60490174,0.00023,2]
[309971435,1704244242620,-340.519297,0.00023,2]
[309971436,1704244242632,-256657.6319288,0.00023,2]
[309971437,1704244242644,-227.35696942,0.0002303,2]
[309971438,1704244242655,-356.9421,0.0002313,2]
[309971439,1704244242665,-1179.63375551,0.0002313,2]
[309971440,1704244242676,-208.0,0.00023691,2]
[309971441,1704244242686,-13917.41660045,0.0002509,2]
[309971442,1704244242696,-190.0,0.00025299,2]
[309971443,1704244242706,-205.57147773,0.00026691,2]
[309971444,1704244242715,-900.64436974,0.00026691,2]
[309971445,1704244242725,-19558.0,0.000272,2]
[309971446,1704244242734,-499.99,0.00027397,2]
[309971447,1704244242744,-155.0,0.00027397,2]
[309971448,1704244242753,-409.98,0.00027502,2]
[309971449,1704244242763,-357.16011627,0.00027874,2]
[309971450,1704244242773,-1619.23,0.00027874,2]
[309971452,1704244242782,-4031.64,0.00028076,2]
[309971453,1704244242792,-208.0,0.00028878,10]
[309971454,1704244242801,-200.0,0.00029123,2]
[309971455,1704244242810,-396.62,0.00029326,2]
[309971456,1704244242820,-250.0,0.00029432,2]
[309971457,1704244242829,-228.38,0.00029456,2]
[309971458,1704244242839,-159.2,0.00029456,2]
[309971459,1704244242848,-250.0,0.00029497,2]
[309971460,1704244242858,-158.27,0.00029544,2]
[309971461,1704244242869,-500.0,0.00029545,2]
[309971462,1704244242879,-150.0,0.00029579,2]
[309971463,1704244242889,-1000.0,0.00029681,2]
[309971464,1704244242899,-252.78,0.00029694,2]
[309971465,1704244242909,-158.27,0.00029715,2]
[309971466,1704244242920,-2589.02,0.00029723,2]
[309971467,1704244242930,-409.98,0.00029766,2]
[309971468,1704244242940,-500.0,0.00029777,2]
[309971469,1704244242950,-23900.0,0.00029782,2]
[309971470,1704244242961,-250.0,0.00029808,2]
[309971471,1704244242971,-158.27,0.00029886,2]
[309971472,1704244242982,-200.0,0.00029933,2]
[309971473,1704244242992,-155.0,0.0003,2]
[309971474,1704244243005,-158.27,0.00030057,2]
[309971475,1704244243016,-158.34,0.00030097,2]
[309971476,1704244243027,-492.24567109,0.000301,2]
[309971477,1704244243037,-400.0,0.0003021,2]
[309971478,1704244243047,-158.27,0.00030228,2]
[309971479,1704244243056,-396.62,0.00030304,2]
[309971480,1704244243065,-158.27,0.00030399,2]
[309971481,1704244243077,-158.34,0.00030473,2]
[309971482,1704244243089,-158.27,0.0003057,2]
[309971483,1704244243098,-3056.51,0.00030717,2]
[309971484,1704244243108,-158.27,0.00030742,2]
[309971485,1704244243118,-159.08,0.00030836,2]
[309971486,1704244243128,-158.34,0.00030849,2]
[309971487,1704244243139,-158.27,0.00030913,2]
[309971488,1704244243149,-158.27,0.00031084,2]
[309971489,1704244243159,-158.34,0.00031225,2]
[309971490,1704244243170,-396.62,0.00031283,2]
[309971491,1704244243179,-445.90233337,0.00031593,4]
[309971492,1704244243189,-158.34,0.00031601,2]
[309971493,1704244243200,-100000.0,0.000319,2]
[309971494,1704244243210,-3732.249684,0.000319,2]
[309971495,1704244243220,-199.94796781,0.000319,2]
[309971496,1704244243230,-158.34,0.00031978,2]
[309971497,1704244243240,-160347.7690397,0.00032,2]
[309971498,1704244243250,-154.83316522,0.00032,2]
[309971499,1704244243259,-409.98,0.0003203,2]
[309971500,1704244243268,-396.62,0.00032261,2]
[309971501,1704244243279,-7336.01074488,0.00032262,7]
[309971502,1704244243288,-10010.00460915,0.00032262,7]
[309971503,1704244243299,-17305.00468168,0.00032262,7]
[309971504,1704244243311,-6595.16167577,0.00032262,7]
[309971505,1704244243320,-158.34,0.00032354,2]
[309971506,1704244243330,-153.84,0.00032668,2]
[309971507,1704244243340,-162.95,0.00032703,2]
[309971508,1704244243350,-158.34,0.0003273,2]
[309971509,1704244243360,-154.21513379,0.00032776,4]
[309971510,1704244243370,-151.67582759,0.00032776,2]
[309971511,1704244243380,-545.0745116,0.000328,2]
[309971512,1704244243389,-238.0,0.00032876,5]
[309971513,1704244243398,-500.0,0.00032876,2]
[309971514,1704244243407,-500.0,0.00032876,2]
[309971515,1704244243416,-506.49424322,0.00032876,2]
[309971516,1704244243425,-500.0,0.00032876,2]
[309971517,1704244243434,-500.0,0.00032876,2]
[309971518,1704244243452,-510.06,0.00032876,2]
[309971519,1704244243462,-500.0,0.00032876,2]
[309971520,1704244243472,-500.0,0.00032876,2]
[309971521,1704244243481,-500.0,0.00032876,2]
[309971522,1704244243491,-500.0,0.00032876,2]
[309971523,1704244243500,-500.0,0.00032876,2]
[309971524,1704244243510,-424.60223411,0.00032876,2]
[309971525,1704244243519,-500.0,0.00032876,2]
[309971526,1704244243528,-236.63600617,0.00032876,2]
[309971527,1704244243538,-500.0,0.00032876,2]
[309971528,1704244243547,-500.0,0.00032876,2]
[309971529,1704244243556,-500.0,0.00032876,2]
[309971530,1704244243565,-500.0,0.00032876,2]
[309971531,1704244243575,-500.0,0.00032876,2]
[309971532,1704244243584,-619.27174524,0.00032876,2]
[309971533,1704244243593,-500.0,0.00032876,2]
[309971534,1704244243603,-500.0,0.00032876,2]
[309971535,1704244243613,-500.0,0.00032876,2]
[309971536,1704244243622,-500.0,0.00032876,2]
[309971537,1704244243631,-545.02,0.00032876,2]
[309971538,1704244243640,-500.0,0.00032876,2]
[309971539,1704244243650,-500.0,0.00032876,2]
[309971540,1704244243659,-500.0,0.00032876,2]
[309971541,1704244243670,-500.0,0.00032876,2]
[309971542,1704244243679,-500.0,0.00032876,2]
[309971543,1704244243689,-500.0,0.00032876,2]
[309971544,1704244243698,-500.0,0.00032876,2]
[309971545,1704244243707,-500.0,0.00032876,2]
[309971546,1704244243717,-500.0,0.00032876,2]
[309971547,1704244243726,-500.0,0.00032876,2]
[309971548,1704244243735,-500.0,0.00032876,2]
[309971549,1704244243745,-500.0,0.00032876,2]
[309971550,1704244243754,-500.0,0.00032876,2]
[309971551,1704244243764,-500.0,0.00032876,2]
[309971552,1704244243773,-500.0,0.00032876,2]
[309971553,1704244243783,-500.0,0.00032876,2]
[309971554,1704244243792,-500.0,0.00032876,2]
[309971555,1704244243801,-639.71,0.00032876,2]
[309971556,1704244243811,-500.0,0.00032876,2]
[309971557,1704244243820,-500.0,0.00032876,2]
[309971558,1704244243830,-500.0,0.00032876,2]
[309971559,1704244243839,-500.0,0.00032876,2]
[309971560,1704244243848,-500.0,0.00032876,2]
[309971561,1704244243858,-500.0,0.00032876,2]
[309971562,1704244243867,-500.0,0.00032876,2]
[309971563,1704244243876,-500.0,0.00032876,2]
[309971564,1704244243886,-500.0,0.00032876,2]
[309971565,1704244243895,-500.0,0.00032876,2]
[309971566,1704244243905,-500.0,0.00032876,2]
[309971567,1704244243914,-500.0,0.00032876,2]
[309971568,1704244243924,-518.4939005,0.00032876,2]
[309971569,1704244243934,-539.02,0.00032876,2]
[309971570,1704244243943,-500.0,0.00032876,2]
[309971571,1704244243953,-500.0,0.00032876,2]
[309971572,1704244243962,-500.0,0.00032876,2]
[309971573,1704244243971,-500.0,0.00032876,2]
[309971574,1704244243981,-500.0,0.00032876,2]
[309971575,1704244243992,-500.0,0.00032876,2]
[309971576,1704244244001,-500.0,0.00032876,2]
[309971577,1704244244011,-500.0,0.00032876,2]
[309971578,1704244244224,-500.0,0.00032876,2]
[309971579,1704244244238,-500.0,0.00032876,2]
[309971580,1704244244248,-550.43289015,0.00032876,2]
[309971581,1704244244257,-500.0,0.00032876,2]
[309971582,1704244244266,-532.42708658,0.00032876,2]
[309971583,1704244244276,-500.0,0.00032876,2]
[309971584,1704244244285,-194.70518338,0.00032876,2]
[309971585,1704244244295,-528.1341641,0.00032876,2]
[309971586,1704244244305,-500.0,0.00032876,2]
[309971587,1704244244314,-500.0,0.00032876,2]
[309971588,1704244244325,-500.0,0.00032876,2]
[309971589,1704244244334,-500.0,0.00032876,2]
[309971590,1704244244345,-500.0,0.00032876,2]
[309971591,1704244244355,-500.0,0.00032876,2]
[309971592,1704244244365,-500.0,0.00032876,2]
[309971593,1704244244375,-500.0,0.00032876,2]
[309971594,1704244244384,-500.0,0.00032876,2]
[309971595,1704244244394,-500.0,0.00032876,2]
[309971596,1704244244403,-500.0,0.00032876,2]
[309971597,1704244244413,-500.0,0.00032876,2]
[309971598,1704244244423,-500.0,0.00032876,2]
[309971599,1704244244433,-500.0,0.00032876,2]
[309971600,1704244244444,-500.0,0.00032876,2]
[309971601,1704244244454,-500.0,0.00032876,2]
[309971602,1704244244464,-500.0,0.00032876,2]
[309971603,1704244244473,-500.0,0.00032876,2]
[309971604,1704244244484,-500.0,0.00032876,2]
[309971605,1704244244494,-500.0,0.00032876,2]
[309971606,1704244244503,-500.0,0.00032876,2]
[309971607,1704244244513,-500.0,0.00032876,2]
[309971608,1704244244522,-500.0,0.00032876,2]
[309971609,1704244244531,-500.0,0.00032876,2]
[309971610,1704244244540,-500.0,0.00032876,2]
[309971611,1704244244549,-500.0,0.00032876,2]
[309971612,1704244244559,-500.0,0.00032876,2]
[309971613,1704244244568,-500.0,0.00032876,2]
[309971614,1704244244577,-516.1596594,0.00032876,2]
[309971615,1704244244586,-500.0,0.00032876,2]
[309971616,1704244244596,-500.0,0.00032876,2]
[309971617,1704244244605,-500.0,0.00032876,2]
[309971618,1704244244615,-500.0,0.00032876,2]
[309971619,1704244244624,-622.5783139,0.00032876,2]
[309971620,1704244244633,-500.0,0.00032876,2]
[309971621,1704244244642,-500.0,0.00032876,2]
[309971622,1704244244651,-255.41,0.00032876,2]
[309971623,1704244244660,-500.0,0.00032876,2]
[309971624,1704244244670,-500.0,0.00032876,2]
[309971625,1704244244679,-500.0,0.00032876,2]
[309971626,1704244244688,-500.0,0.00032876,2]
[309971627,1704244244697,-500.0,0.00032876,2]
[309971628,1704244244706,-500.0,0.00032876,2]
[309971629,1704244244716,-500.0,0.00032876,2]
[309971630,1704244244726,-500.0,0.00032876,2]
[309971631,1704244244736,-500.0,0.00032876,2]
[309971632,1704244244745,-500.0,0.00032876,2]
[309971633,1704244244754,-500.0,0.00032876,2]
[309971634,1704244244763,-500.0,0.00032876,2]
[309971635,1704244244773,-500.0,0.00032876,2]
[309971636,1704244244782,-307.99,0.00032876,2]
[309971637,1704244244792,-500.0,0.00032876,2]
[309971638,1704244244801,-500.0,0.00032876,2]
[309971639,1704244244810,-500.0,0.00032876,2]
[309971640,1704244244819,-500.0,0.00032876,2]
[309971641,1704244244829,-500.0,0.00032876,2]
[309971642,1704244244838,-500.0,0.00032876,2]
[309971643,1704244244848,-500.0,0.00032876,2]
[309971644,1704244244857,-500.0,0.00032876,2]
[309971645,1704244244867,-500.0,0.00032876,2]
[309971646,1704244244877,-500.0,0.00032876,2]
[309971647,1704244244886,-414.08465647,0.00032876,2]
[309971648,1704244244895,-500.0,0.00032876,2]
[309971649,1704244244904,-645.32645925,0.00032876,2]
[309971650,1704244244913,-500.0,0.00032876,2]
[309971651,1704244244923,-500.0,0.00032876,2]
[309971652,1704244244931,-500.0,0.00032876,2]
[309971653,1704244244940,-500.0,0.00032876,2]
[309971654,1704244244949,-500.0,0.00032876,2]
[309971655,1704244244958,-500.0,0.00032876,2]
[309971656,1704244244967,-500.0,0.00032876,2]
[309971657,1704244244977,-500.0,0.00032876,2]
[309971658,1704244244986,-188.14003807,0.00032876,2]
[309971659,1704244244996,-500.0,0.00032876,2]
[309971660,1704244245005,-223.95,0.00032876,2]
[309971661,1704244245015,-515.6366146,0.00032876,2]
[309971662,1704244245024,-239.85,0.00032876,2]
[309971663,1704244245033,-500.0,0.00032876,2]
[309971664,1704244245043,-500.0,0.00032876,2]
[309971665,1704244245052,-500.0,0.00032876,2]
[309971666,1704244245062,-289.08,0.00032876,2]
[309971667,1704244245071,-150.0,0.00032876,2]
[309971668,1704244245080,-500.0,0.00032876,2]
[309971669,1704244245089,-556.87,0.00032876,2]
[309971670,1704244245099,-500.0,0.00032876,2]
[309971671,1704244245108,-394.48612468,0.00032876,2]
[309971672,1704244245118,-500.0,0.00032876,2]
[309971673,1704244245127,-595.94459569,0.00032876,2]
[309971674,1704244245136,-500.0,0.00032876,2]
[309971675,1704244245146,-500.0,0.00032876,2]
[309971676,1704244245155,-475.14,0.00032876,2]
[309971677,1704244245164,-500.0,0.00032876,2]
[309971678,1704244245173,-151.01,0.00032876,2]
[309971679,1704244245183,-500.0,0.00032876,2]
[309971680,1704244245192,-500.0,0.00032876,2]
[309971682,1704244245201,-500.0,0.00032876,2]
[309971683,1704244245210,-500.0,0.00032876,2]
[309971684,1704244245220,-500.0,0.00032876,2]
[309971685,1704244245230,-500.0,0.00032876,2]
[309971686,1704244245239,-500.0,0.00032876,2]
[309971687,1704244245247,-500.0,0.00032876,2]
[309971690,1704244245256,-500.0,0.00032876,2]
[309971691,1704244245265,-500.0,0.00032876,2]
[309971692,1704244245274,-500.0,0.00032876,2]
[309971693,1704244245285,-500.0,0.00032876,2]
[309971694,1704244245295,-500.0,0.00032876,2]
[309971695,1704244245304,-500.0,0.00032876,2]
[309971697,1704244245313,-500.0,0.00032876,2]
[309971698,1704244245323,-500.0,0.00032876,2]
[309971700,1704244245333,-418.1374601,0.00032876,2]
[309971701,1704244245342,-500.0,0.00032876,2]
[309971702,1704244245352,-500.0,0.00032876,2]
[309971703,1704244245362,-500.0,0.00032876,2]
[309971704,1704244245372,-366.09815495,0.00032876,2]
[309971705,1704244245381,-504.92828427,0.00032876,2]
[309971706,1704244245390,-500.0,0.00032876,2]
[309971707,1704244245399,-363.1280161,0.00032876,2]
[309971708,1704244245408,-500.0,0.00032876,2]